Cogmind - Beta 15 *** ADVENTURER MODE // 2025.05.18 @ 09:40:49 Player: slitch Result: Destroyed by D-53 Grenadier with Mini Grenade Launcher Performance ------------- Evolutions (0) 0 Regions Visited (2) 400 Robots Destroyed (16) 80 Value Destroyed (390) 390 Prototype IDs (4) 80 Alien Tech Used (0) 0 Bonus (-12) -12 TOTAL SCORE: 938 Bonus ------- Friendly Fire -12 Cogmind --------- Core Integrity 0/250 Matter 100/300 Energy 100/100 System Corruption 1% Temperature Cool (0) Movement Core (50) Location -10/Mines Parts ------- > --- POWER (1) -------- (None) > --- PROPULSION (2) --- (None) > --- UTILITY (2) ------ Sensor Array Improved Terrain Scanner > --- WEAPON (2) ------- Mini Grenade Launcher > --- INVENTORY (5) ---- Hover Unit Hover Unit Heat Sink Grenade Launcher Peak State ------------ > --- POWER ------------ Light Ion Engine > --- PROPULSION ------- Armored Wheel Armored Wheel > --- UTILITY ---------- Heat Sink Improved Terrain Scanner > --- WEAPON ----------- Mini Grenade Launcher Mini Grenade Launcher > --- INVENTORY -------- Medium Laser Small Laser Grenade Launcher [Rating: 13] Favorites ----------- Power Light Ion Engine Engine Light Ion Engine Propulsion Flight Unit Wheel Armored Wheel Flight Unit Flight Unit Utility Improved Terrain Scanner Device Improved Terrain Scanner Processor Targeting Computer Weapon Mini Grenade Launcher Energy Gun Medium Laser Launcher Mini Grenade Launcher Build | -11 -10 -10 ------- Run | Yrd Mat Min Slots Evolved . | . . . Power . | . . . Propulsion . | . . . Utility . | . . . Weapon . | . . . Parts Attached 17 | 8 9 . Power 1 | 1 . . Engine 1 | 1 . . Core . | . . . Reactor . | . . . Propulsion 6 | 2 4 . Treads . | . . . Leg . | . . . Wheel 4 | 2 2 . Hover . | . . . Flight 2 | . 2 . Utility 5 | 2 3 . Device 4 | 2 2 . Storage . | . . . Processor 1 | . 1 . Hackware . | . . . Protection . | . . . Artifact . | . . . Weapon 5 | 3 2 . Energy Gun 3 | 3 . . Energy Cannon . | . . . Ballistic Gun . | . . . Ballistic Cannon . | . . . Launcher 2 | . 2 . Special Weapon . | . . . Impact Weapon . | . . . Slashing Weapon . | . . . Piercing Weapon . | . . . Special Melee Weapon . | . . . Unidentified Prototypes . | . . . Parts Lost 4 | . . 4 Power 1 | . . 1 Propulsion 2 | . . 2 Utility . | . . . Weapon 1 | . . 1 Highest Loss Streak 4 | . . 4 To Critical Strikes . | . . . Average Backups 3 | . 3 4 Power . | . . . Propulsion . | . . 2 Utility . | . . 1 Weapon 1 | . 2 1 Tool/Special . | . . . Unused Backups 3 | . . 3 Power . | . . . Propulsion 2 | . . 2 Utility . | . . . Weapon 1 | . . 1 Tool/Special . | . . . Average Slot Usage (%) 96 | . 96 85 Engine 13 | . 13 9 Wheel 14 | . 15 . Flight 11 | . 10 18 Device 22 | . 21 28 Processor 5 | . 5 . Energy Gun 5 | . 5 . Launcher 22 | . 21 28 Peak Build Rating 13 | 9 13 11 Average Rating 10 | 4 11 8 On Entrance 6 | . 9 11 Naked Turns . | . . . Heaviest Build 9 | 9 9 7 Greatest Support 24 | 20 24 8 Greatest Overweight (x) 1 | . 1 . Average Overweight (x) . | . . . Largest Inventory Capacity 5 | 5 5 5 Average Capacity 5 | 5 5 5 Most Carried 5 | 2 5 4 Average Carried 3 | . 3 4 Final Capacity 5 | 5 5 5 Final Carried 4 | 1 4 4 Class Distribution -------------------- 100% | Mutant Dominant Class ---------------- Mutant | -10/Materials Mutant | -10/Mines Resources | -11 -10 -10 ----------- Run | Yrd Mat Min Matter Collected 496 | 290 206 . Remotely . | . . . Salvage Created 300 | 69 192 39 Parts 33 | 4 28 1 Haulers Intercepted . | . . . Recyclers Shooed . | . . . Parts Field Recycled . | . . . Retrieved Matter . | . . . Parts Self-Destructed . | . . . Prevented . | . . . Kills | -11 -10 -10 ------- Run | Yrd Mat Min Combat Hostiles Destroyed 10 | 1 9 . Guns 1 | 1 . . AOE 9 | . 9 . Classes Destroyed 6 | 2 3 1 Builder 2 | . 2 . Tunneler 2 | 1 1 . Recycler 1 | . . 1 Watcher 1 | . 1 . Swarmer 3 | . 3 . Grunt 7 | 1 6 . Best Kill Streak 6 | 2 6 1 Combat Bots Only 4 | 1 4 . Max Kills in Single Turn 3 | 1 3 1 Gunslinging . | . . . Exploded 3 | . 3 . Melee . | . . . Uniques/NPCs Destroyed . | . . . Combat | -11 -10 -10 -------- Run | Yrd Mat Min Hostile Shots Fired 25 | 7 5 13 Missed 5 | 3 2 . Hits 20 | 4 3 13 Melee 1 | . . 1 Projectile 19 | 4 3 12 AOE 14 | . . 14 Damage Taken 550 | 32 80 438 Core 278 | 8 7 263 Absorbed by Shields . | . . . Ignored by Resistances 151 | 9 22 120 Regen/Repaired (Parts) 63 | . 63 . Core Remaining (%) 96 | 96 . . Volleys Fired 27 | 6 12 9 Largest 2 | 2 2 2 Hottest 100 | 100 60 60 Shots Fired 39 | 12 17 10 Gun 12 | 12 . . Cannon . | . . . Launcher 27 | . 17 10 Special . | . . . Kinetic . | . . . Thermal 12 | 12 . . Explosive 27 | . 17 10 Electromagnetic . | . . . Robot Hit Streak 4 | 4 1 2 Robot Miss Streak 2 | 2 1 . Penetration Max . | . . . Secondary Targets . | . . . Shots Hit Robots 10 | 8 1 1 Core Hits 39 | 3 21 15 Critical Kills . | . . . Critical Parts Destroyed . | . . . Critical Strikes 2 | 2 . . Burn 2 | 2 . . Melee Attacks . | . . . Impact . | . . . Slashing . | . . . Piercing . | . . . Sneak Attacks . | . . . Combat Hostiles . | . . . Follow-up Attacks . | . . . Damage Inflicted 1051 | 126 783 142 Guns 126 | 126 . . Cannons . | . . . Explosions 917 | . 775 142 Melee . | . . . Ramming 8 | . 8 . Kinetic . | . . . Thermal 126 | 126 . . Explosive 917 | . 775 142 Electromagnetic . | . . . Impact . | . . . Slashing . | . . . Piercing . | . . . Highest Corruption 1 | . 1 1 Average Corruption 1 | . 1 1 Corruption Purged . | . . . Corruption Blocked . | . . . Overload Shots . | . . . Overflow Damage 7 | . 7 . Projectiles . | . . . Explosions 7 | . 7 . Melee . | . . . Knockbacks . | . . . Impact . | . . . Kinetic . | . . . Secondary . | . . . Self-Inflicted Damage 73 | . 48 25 Shots 3 | . 2 1 Rammed 1 | . 1 . Targets Rammed 1 | . 1 . Kicked . | . . . Crushed . | . . . Highest Temperature 252 | 252 . 1 Average Temperature 123 | 127 . 1 Received Heat Transfer 42 | 24 18 . Siege Activations . | . . . Martial Activations . | . . . Shielding Activations . | . . . Robots Disrupted . | . . . Combat Hostiles . | . . . Robots Corrupted . | . . . Combat Hostiles . | . . . Parts Fried . | . . . Impact Corruptions . | . . . Robots Melted . | . . . Combat Hostiles . | . . . Parts Melted 2 | 2 . . Heat Transferred 518 | 518 . . Parts Sabotaged . | . . . Parts Stolen . | . . . Parts Stripped . | . . . Power Chain Reactions . | . . . Alert | -11 -10 -10 ------- Run | Yrd Mat Min Maximum Alert Level 1 | . 1 . Low Security (%) 67 | 100 61 100 Level 1 32 | . 38 . Level 2 . | . . . Level 3 . | . . . Level 4 . | . . . Level 5 . | . . . High Security . | . . . Max Security . | . . . Peak Influence 278 | 20 278 67 Initial 54 | . 11 54 Average 124 | 3 146 48 Influence Increases 448 | 25 392 31 Destroy 0b10 Robot/C 200 | 20 180 . Destroy 0b10 Robot/NC 30 | 5 20 5 Destroy Leader 42 | . 42 . Successful Hack 14 | . 14 . Disable Machine 45 | . 45 . Destroy Structure 117 | . 91 26 Influence Decreases 413 | 5 246 162 Entered New Map 121 | . 9 112 Time Decay 252 | 5 237 10 Lost Part 40 | . . 40 Squads Dispatched 1 | . 1 . Investigation 1 | . 1 . Extermination . | . . . Reinforcement . | . . . Assault . | . . . Garrison . | . . . Intercept . | . . . Searches Triggered . | . . . Construction Impeded . | . . . Haulers Reinforced . | . . . Active Scanning Responses . | . . . Cargo Convoy Interrupts . | . . . Stealth | -11 -10 -10 --------- Run | Yrd Mat Min Distress Signals . | . . . Communications Jammed . | . . . Distress Signals . | . . . Times Spotted 13 | 1 5 7 Peak Tracking Total 7 | 1 3 7 Tactical Retreats . | . . . Traps | -11 -10 -10 ------- Run | Yrd Mat Min Traps Triggered 4 | . 4 . Indirectly . | . . . Trap Hack Attempts . | . . . Triggered . | . . . Disarmed . | . . . Reprogrammed . | . . . Reused . | . . . Traps Extracted . | . . . Installed . | . . . Triggered . | . . . Machines | -11 -10 -10 ---------- Run | Yrd Mat Min Machines Disabled 5 | . 5 . Max in Single Turn 2 | . 2 . Machines Repaired . | . . . Machines Dismantled . | . . . Machines Sabotaged . | . . . Overloaded Fab Kills . | . . . Hacking | -11 -10 -10 --------- Run | Yrd Mat Min Machines Accessed 9 | . 9 . Terminals 6 | . 6 . Fabricators . | . . . Repair Stations 1 | . 1 . Recycling Units 2 | . 2 . Scanalyzers . | . . . Garrison Access . | . . . Total Hacks 32 | . 32 . Successful 22 | . 22 . Failed 10 | . 10 . Catastrophic 1 | . 1 . Database Lockouts . | . . . Manual . | . . . Terminals 18 | . 18 . Fabricators . | . . . Repair Stations 11 | . 11 . Recycling Units 3 | . 3 . Scanalyzers . | . . . Garrison Access . | . . . Terminal Hacks 9 | . 9 . Robot Analysis 1 | . 1 . Prototype ID Bank 2 | . 2 . Alert Level 1 | . 1 . Transport Status 1 | . 1 . Hauler Manifests 1 | . 1 . Registered Components 1 | . 1 . Zone Layout 2 | . 2 . Fabricator Hacks . | . . . Repair Station Hacks 10 | . 10 . Scan Component 5 | . 5 . Repair 5 | . 5 . Recycling Unit Hacks 3 | . 3 . Report Inventory 2 | . 2 . Retrieve Components 1 | . 1 . Scanalyzer . | . . . Garrison Access Hacks . | . . . Unauthorized Hacks . | . . . Terminals . | . . . Fabricators . | . . . Repair Stations . | . . . Recycling Units . | . . . Scanalyzers . | . . . Garrison Access . | . . . Data Cores Recovered . | . . . Used . | . . . Hacking Detections 6 | . 6 . Full Trace Events . | . . . Feedback Events . | . . . Feedback Blocked . | . . . Robot Schematics Acquired . | . . . Robots Built . | . . . Authchips . | . . . Time . | . . . Total Robot Build Rating . | . . . Part Schematics Acquired . | . . . Parts Built . | . . . Authchips . | . . . Time . | . . . Total Part Build Rating . | . . . Parts Repaired 5 | . 5 . Time 136 | . 136 . Parts Recycled . | . . . Recycled Matter . | . . . Retrieved Matter . | . . . Retrieved Components 5 | . 5 . Parts Scanalyzed . | . . . Part Schematics Acquired . | . . . Parts Damaged . | . . . Bothacking | -11 -10 -10 ------------ Run | Yrd Mat Min Used RIF Installer . | . . . Robots Hacked . | . . . Non-combat . | . . . Combat . | . . . Robot Hacks Applied . | . . . Relay Couplers Released . | . . . Fabnet Peak Effective % . | . . . Robots Rewired . | . . . Allies Hacked . | . . . Hacks Repelled . | . . . Allies | -11 -10 -10 -------- Run | Yrd Mat Min Total Allies . | . . . Largest Group . | . . . Highest-Rated Group . | . . . Highest-Rated Ally . | . . . Total Orders . | . . . Ally Attacks . | . . . Total Damage . | . . . Kills . | . . . Allies Corrupted . | . . . Allies Melted . | . . . Intel | -11 -10 -10 ------- Run | Yrd Mat Min Active Infowar (turns) 612 | 3 586 23 Sensors 64 | . 41 23 Terrain 612 | 3 586 23 Robot Analysis Total 1 | . 1 . Derelict Logs Recovered . | . . . Drone Launches . | . . . Drone Recoveries . | . . . Exploration | -11 -10 -10 ------------- Run | Yrd Mat Min Turns Passed 705 | 96 586 23 Spaces Moved 674 | 81 580 13 Core 26 | 24 2 . Treads . | . . . Legs . | . . . Wheels 367 | 57 310 . Hover . | . . . Flight 281 | . 268 13 Fastest Speed 37 | 50 37 37 Average Speed 64 | 71 63 37 Slowest Speed 100 | 80 100 37 Overloaded Moves . | . . . Propulsion Burnouts . | . . . Robots Hopped . | . . . Potential Cave-ins . | . . . Cave-ins Triggered . | . . . Exploration Rate (%) 38 | 5 100 9 Regions Visited 2 Branch Regions 1 Pre-discovered Areas . | . . . Known Exits Taken . | . . . Unknown Exits Taken 2 | 1 1 . Scrap Searched . | . . . Spaces Dug 15 | . . 15 Terrain Destroyed 153 | . 93 60 Melee . | . . . Projectile . | . . . AOE 153 | . 93 60 Terrain Rammed . | . . . Walls Destroyed . | . . . Machines Disabled . | . . . Actions | -11 -10 -10 --------- Run | Yrd Mat Min Total 909 | 106 781 22 Wait 147 | 3 144 . Move 672 | 80 579 13 Hop . | . . . Pick Up 28 | 8 20 . Fast Attach . | . . . Attach 17 | 7 10 . Detach . | . . . Swap 8 | 2 6 . Drop 9 | . 9 . Fire 27 | 6 12 9 Melee . | . . . Ram 1 | . 1 . Kick . | . . . Crush . | . . . Escape Stasis . | . . . Rewire . | . . . Trap . | . . . Miscellaneous . | . . . Route ------- -11/Scrapyard -10/Materials (discovered 6 exits: [*Mat x3] / [*Min x2] / [*Sub]) -10/Mines (discovered 1 exit: [*Mat]) History --------- Turn | Location | Event 2 | -11/Scrapyard | Met Revision 17 61 | -11/Scrapyard | Discovered new exit (range 8) 97 | -11/Scrapyard | Entered Materials 98 | -10/Materials | Met a group of wandering Federalists 228 | -10/Materials | Discovered new exit (range 13) 228 | -10/Materials | Discovered new exit (range 15) 310 | -10/Materials | Discovered new exit (range 10) 318 | -10/Materials | Build established: Mutant 348 | -10/Materials | Discovered new exit (range 15) 459 | -10/Materials | Discovered new exit (range 16) 507 | -10/Materials | Repaired Flight Unit 535 | -10/Materials | Repaired Flight Unit 563 | -10/Materials | Repaired Lgt. Ion Engine 591 | -10/Materials | Repaired Hover Unit 624 | -10/Materials | Repaired Mni. Grenade Launcher 646 | -10/Materials | Discovered new exit (range 8) 683 | -10/Materials | Entered Mines 684 | -10/Mines | Assembled infested the area 689 | -10/Mines | Assisted by a Guerilla fighting off Assembled 690 | -10/Mines | Discovered new exit (range 8) 699 | -10/Mines | Core integrity fell below 50% 705 | -10/Mines | Core integrity fell below 20% 706 | -10/Mines | Destroyed by D-53 Grenadier with Mini Grenade Launcher Last Messages --------------- 00696_ K-01 Serf collects debris. 00696_ Flight Unit destroyed. 00697_ The unstable cave ceiling collapses. 00697_ U-05 Engineer builds a Wall. 00698_ The unstable cave ceiling collapses. 00698_ K-01 Serf collects debris. 00700_ The unstable cave ceiling collapses. 00700_ Mni. Grenade Launcher destroyed. 00701_ U-05 Engineer builds a Wall. 00701_ K-01 Serf collects debris. 00702_ The unstable cave ceiling collapses. 00702_ as-79309 sneak attacks. 00703_ The unstable cave ceiling collapses. 00704_ as-69955 destroyed. 00704_ as-99108 destroyed. 00704_ K-01 Serf collects debris. 00705_ U-05 Engineer builds a Wall. 00705_ K-01 Serf collects debris. 00705_ R-06 Scavenger destroyed. 00706_ The unstable cave ceiling collapses. Map ----- +----------------------------------------------------+ | | | | | | | | | | | | | | | | | | | | | | | | | | | | | | | ?????????????????????????????????????????????????? | | ?????????????????????????????????????????????????? | | ?????????????????????????????###???###???????????? | | ????????????????????????????? ### #???????????? | | ?????????????????????####??? ?????????????? | | ????????????????????## #### k